[Event "POL-chT 1st League 2020"]
[Site "Ustron"]
[Date "2020.09.07"]
[Round "3.11"]
[White "Tymrakiewicz, Rafal"]
[Black "Czernek, Tymon"]
[Result "0-1"]
[ECO "A80"]
[WhiteElo "2245"]
[BlackElo "2267"]
[Annotator "ChessBase"]
[PlyCount "160"]
[EventDate "2020.09.05"]
[EventType "team-tourn"]
[EventCountry "POL"]
[SourceTitle "playchess.com"]
[Source "ChessBase"]
[SourceQuality "1"]
[WhiteTeam "Sz.S.O.N. ZAGLEBIE Dabrowa G."]
[BlackTeam "LKSz GCKiP Czarna"]
[WhiteTeamCountry "POL"]
[BlackTeamCountry "POL"]
[TimeControl "40/5400+30:1800+30"]

1. d4 {[%emt 0:00:00]} f5 {[%emt 0:00:00]} 2. Bg5 {[%emt 0:01:25]} g6 {[%emt 0:00:00]} 3. h4 {[%emt 0:09:38]} Bg7 {[%emt 0:00:00]} 4. Nc3 {[%emt 0:03:56]} d6 {[%emt 0:02:44]} 5. e4 {[%emt 0:04:50]} Nf6 {[%emt 0:14:54]} 6. f3 {[%emt 0:21:50]} h6 {[%emt 0:09:27]} 7. Be3 {[%emt 0:01:53]} fxe4 {[%emt 0:00:53]} 8. Nxe4 {[%emt 0:01:13]} Nxe4 {[%emt 0:05:00]} 9. fxe4 {[%emt 0:00:11]} e5 {[%emt 0:00:15]} 10. d5 {[%emt 0:07:27]} Nd7 {[%emt 0:01:39]} 11. h5 {[%emt 0:05:52]} Nf6 {[%emt 0:04:35]} 12. hxg6 {[%emt 0:07:51]} Nxe4 {[%emt 0:00:14]} 13. Bb5+ {[%emt 0:07:22]} Bd7 {[%emt 0:13:04]} 14. Qf3 {[%emt 0:03:42]} Nf6 {[%emt 0:00:19]} 15. Bxd7+ {[%emt 0:00:07]} Qxd7 {[%emt 0:00:05]} 16. O-O-O {[%emt 0:00:15]} O-O-O {[%emt 0:01:27]} 17. Ne2 {[%emt 0:00:04]} Ng4 {[%emt 0:03:50]} 18. Nc3 {[%emt 0:04:37]} Rdf8 {[%emt 0:06:37]} 19. Qe2 {[%emt 0:00:37]} a6 {[%emt 0:00:48]} 20. Bg1 {[%emt 0:03:02]} Qf5 {[%emt 0:01:08]} 21. Rh3 {[%emt 0:03:29]} Qxg6 {[%emt 0:00:59]} 22. b4 {[%emt 0:04:11]} h5 {[%emt 0:04:41]} 23. b5 {[%emt 0:01:04]} axb5 {[%emt 0:01:03]} 24. Nxb5 {[%emt 0:01:23]} Kd7 {[%emt 0:10:02]} 25. Rc3 {[%emt 0:01:13]} Rc8 {[%emt 0:00:58]} 26. Na7 {[%emt 0:01:16]} e4 {[%emt 0:03:18]} 27. Qb5+ {[%emt 0:00:24]} Ke7 {[%emt 0:00:51]} 28. Nxc8+ {[%emt 0:00:50]} Rxc8 {[%emt 0:00:01]} 29. Bd4 {[%emt 0:02:26]} Nf2 {[%emt 0:08:16]} 30. Qxb7 {[%emt 0:01:43]} Bh6+ {[%emt 0:01:10]} 31. Be3 {[%emt 0:00:57]} Bxe3+ {[%emt 0:00:23]} 32. Rxe3 {[%emt 0:00:13]} Nxd1 {[%emt 0:00:04]} 33. Kxd1 {[%emt 0:00:56]} Qg4+ {[%emt 0:00:05]} 34. Kc1 {[%emt 0:00:16]} Qf4 {[%emt 0:01:49]} 35. Qxc8 {[%emt 0:00:34]} Qxe3+ {[%emt 0:00:08]} 36. Kb2 {[%emt 0:00:27]} Qd4+ {[%emt 0:00:14]} 37. Kc1 {[%emt 0:00:42]} Qxd5 {[%emt 0:01:41]} 38. Qxc7+ {[%emt 0:00:05]} Ke6 {[%emt 0:00:05]} 39. Qh7 {[%emt 0:00:36]} Qg5+ {[%emt 0:00:16]} 40. Kd1 {[%emt 0:00:00]} Qg4+ {[%emt 0:00:00]} 41. Kc1 {[%emt 0:09:47]} Qf4+ {[%emt 0:00:29]} 42. Kb2 {[%emt 0:04:03]} e3 {[%emt 0:01:05]} 43. Qg6+ {[%emt 0:02:40]} Kd7 {[%emt 0:00:45]} 44. Qxh5 {[%emt 0:06:58]} Qb4+ {[%emt 0:00:37]} 45. Ka1 {[%emt 0:03:05]} Qd2 {[%emt 0:00:09]} 46. Qf7+ {[%emt 0:00:36]} Kc6 {[%emt 0:00:08]} 47. Qc4+ {[%emt 0:01:01]} Kb6 {[%emt 0:00:07]} 48. a4 {[%emt 0:01:46]} e2 {[%emt 0:01:59]} 49. Qb5+ {[%emt 0:00:16]} Kc7 {[%emt 0:00:11]} 50. Qc4+ {[%emt 0:00:13]} Kd8 {[%emt 0:00:24]} 51. Qg8+ {[%emt 0:01:04]} Ke7 {[%emt 0:00:06]} 52. Qg7+ {[%emt 0:02:23]} Ke6 {[%emt 0:00:05]} 53. Qg6+ {[%emt 0:01:02]} Ke5 {[%emt 0:00:10]} 54. Qg7+ {[%emt 0:00:55]} Kd5 {[%emt 0:02:07]} 55. Qf7+ {[%emt 0:00:51]} Kc5 {[%emt 0:01:02]} 56. Qc7+ {[%emt 0:00:22]} Kb4 {[%emt 0:01:10]} 57. Qb6+ {[%emt 0:00:21]} Kxa4 {[%emt 0:02:21]} 58. Qa6+ {[%emt 0:00:15]} Kb4 {[%emt 0:00:41]} 59. Qb6+ {[%emt 0:00:45]} Kc3 {[%emt 0:00:54]} 60. Qb3+ {[%emt 0:01:12]} Kd4 {[%emt 0:00:12]} 61. Qb6+ {[%emt 0:00:05]} Ke4 {[%emt 0:01:19]} 62. Qb7+ {[%emt 0:00:49]} Qd5 {[%emt 0:00:33]} 63. Qh7+ {[%emt 0:00:42]} Ke3 {[%emt 0:00:30]} 64. Qh6+ {[%emt 0:00:37]} Kf2 {[%emt 0:00:15]} 65. Qh4+ {[%emt 0:00:28]} Kxg2 {[%emt 0:00:56]} 66. Qg4+ {[%emt 0:00:23]} Kf1 {[%emt 0:00:50]} 67. Qh3+ {[%emt 0:01:29]} Qg2 {[%emt 0:00:42]} 68. Qd3 {[%emt 0:00:23]} Kf2 {[%emt 0:02:11]} 69. Qd4+ {[%emt 0:00:13]} Kg3 {[%emt 0:01:18]} 70. Qxd6+ {[%emt 0:00:26]} Kf2 {[%emt 0:00:45]} 71. Qd4+ {[%emt 0:00:19]} Kf1 {[%emt 0:00:12]} 72. Qd3 {[%emt 0:00:54]} Qg4 {[%emt 0:00:19]} 73. c4 {[%emt 0:00:44]} Kf2 {[%emt 0:00:17]} 74. Qc2 {[%emt 0:00:32]} Qf3 {[%emt 0:01:03]} 75. c5 {[%emt 0:00:20]} Qd5 {[%emt 0:00:20]} 76. Kb2 {[%emt 0:00:24]} Kf1 {[%emt 0:00:10]} 77. c6 {[%emt 0:00:58]} e1=Q {[%emt 0:00:05]} 78. c7 {[%emt 0:00:16]} Qb4+ {[%emt 0:00:07]} 79. Kc1 {[%emt 0:00:18]} Qg5+ {[%emt 0:00:08]} 80. Kd1 {[%emt 0:00:02]} Qd4+ {[%emt 0:00:09]} 0-1

[Event "POL-chT 1st League 2020"]
[Site "Ustron"]
[Date "2020.09.07"]
[Round "3.12"]
[White "Wikar, Martyna"]
[Black "Kubicka, Anna"]
[Result "1-0"]
[ECO "B17"]
[WhiteElo "2045"]
[BlackElo "2264"]
[Annotator "ChessBase"]
[PlyCount "111"]
[EventDate "2020.09.05"]
[EventType "team-tourn"]
[EventCountry "POL"]
[SourceTitle "playchess.com"]
[Source "ChessBase"]
[SourceQuality "1"]
[WhiteTeam "LKSz GCKiP Czarna"]
[BlackTeam "Sz.S.O.N. ZAGLEBIE Dabrowa G."]
[WhiteTeamCountry "POL"]
[BlackTeamCountry "POL"]
[TimeControl "40/5400+30:1800+30"]

1. e4 {[%emt 0:00:00]} c6 {[%emt 0:00:00]} 2. d4 {[%emt 0:00:00]} d5 {[%emt 0:00:00]} 3. Nc3 {[%emt 0:00:07]} dxe4 {[%emt 0:00:00]} 4. Nxe4 {[%emt 0:00:06]} Nd7 {[%emt 0:00:02]} 5. Bc4 {[%emt 0:02:09]} Ngf6 {[%emt 0:00:14]} 6. Ng5 {[%emt 0:01:17]} e6 {[%emt 0:00:07]} 7. Qe2 {[%emt 0:00:21]} Nb6 {[%emt 0:00:22]} 8. Bd3 {[%emt 0:02:14]} h6 {[%emt 0:00:47]} 9. N5f3 {[%emt 0:01:55]} c5 {[%emt 0:00:48]} 10. dxc5 {[%emt 0:04:52]} Bxc5 {[%emt 0:00:55]} 11. Ne5 {[%emt 0:01:54]} Qc7 {[%emt 0:04:00]} 12. Ngf3 {[%emt 0:04:21]} O-O {[%emt 0:03:16]} 13. O-O {[%emt 0:02:06]} Bd7 {[%emt 0:05:13]} 14. c3 {[%emt 0:06:05]} Bc6 {[%emt 0:02:58]} 15. Nxc6 {[%emt 0:05:29]} Qxc6 {[%emt 0:01:16]} 16. Ne5 {[%emt 0:01:26]} Qc7 {[%emt 0:02:50]} 17. Bf4 {[%emt 0:04:19]} Nbd5 {[%emt 0:04:25]} 18. Bg3 {[%emt 0:01:53]} Bd6 {[%emt 0:07:36]} 19. Rad1 {[%emt 0:06:16]} Rad8 {[%emt 0:03:03]} 20. Bb1 {[%emt 0:04:28]} b5 {[%emt 0:10:46]} 21. Rfe1 {[%emt 0:03:27]} a6 {[%emt 0:12:37]} 22. Qc2 {[%emt 0:06:51]} g6 {[%emt 0:07:00]} 23. Rd4 {[%emt 0:05:59]} Bxe5 {[%emt 0:22:55]} 24. Bxe5 {[%emt 0:01:00]} Qe7 {[%emt 0:00:14]} 25. Qd2 {[%emt 0:02:22]} Kh7 {[%emt 0:02:40]} 26. b3 {[%emt 0:05:09]} Nd7 {[%emt 0:05:50]} 27. Bg3 {[%emt 0:04:22]} Qg5 {[%emt 0:01:29]} 28. f4 {[%emt 0:04:55]} Qh5 {[%emt 0:01:35]} 29. c4 {[%emt 0:01:10]} bxc4 {[%emt 0:00:04]} 30. bxc4 {[%emt 0:00:05]} N5f6 {[%emt 0:00:55]} 31. f5 {[%emt 0:03:26]} gxf5 {[%emt 0:00:10]} 32. Bc7 {[%emt 0:06:48]} Rc8 {[%emt 0:00:41]} 33. Rxd7 {[%emt 0:00:13]} Nxd7 {[%emt 0:00:02]} 34. Qxd7 {[%emt 0:00:02]} Rce8 {[%emt 0:01:35]} 35. c5 {[%emt 0:02:31]} Rg8 {[%emt 0:00:26]} 36. Qd2 {[%emt 0:03:33]} Rg4 {[%emt 0:00:36]} 37. g3 {[%emt 0:01:50]} Reg8 {[%emt 0:00:27]} 38. Bf4 {[%emt 0:01:31]} Qg6 {[%emt 0:00:32]} 39. Qe3 {[%emt 0:00:43]} Qf6 {[%emt 0:00:24]} 40. c6 {[%emt 0:00:00]} Qh4 {[%emt 0:00:00]} 41. Kh1 {[%emt 0:04:58]} Qd8 {[%emt 0:01:00]} 42. Qf3 {[%emt 0:01:55]} Qa5 {[%emt 0:05:53]} 43. Rc1 {[%emt 0:02:15]} R4g6 {[%emt 0:03:25]} 44. c7 {[%emt 0:02:55]} Rc8 {[%emt 0:00:53]} 45. Qb7 {[%emt 0:02:12]} Rgg8 {[%emt 0:00:10]} 46. Qc6 {[%emt 0:01:09]} h5 {[%emt 0:06:12]} 47. Qc5 {[%emt 0:03:50]} Qa4 {[%emt 0:02:20]} 48. Bxf5+ {[%emt 0:02:20]} exf5 {[%emt 0:01:54]} 49. Qxf5+ {[%emt 0:00:06]} Rg6 {[%emt 0:00:51]} 50. Qxf7+ {[%emt 0:00:09]} Rg7 {[%emt 0:00:16]} 51. Qf5+ {[%emt 0:00:13]} Rg6 {[%emt 0:00:10]} 52. Qxh5+ {[%emt 0:00:37]} Kg7 {[%emt 0:00:18]} 53. Be5+ {[%emt 0:00:22]} Rf6 {[%emt 0:01:52]} 54. Qg5+ {[%emt 0:00:19]} Kh7 {[%emt 0:00:03]} 55. Bxf6 {[%emt 0:00:14]} Qe4+ {[%emt 0:02:37]} 56. Kg1 {[%emt 0:00:05]} 1-0

[Event "POL-chT 1st League 2020"]
[Site "Ustron"]
[Date "2020.09.07"]
[Round "3.15"]
[White "Budrewicz, Krzysztof"]
[Black "Licznerski, Lukasz"]
[Result "0-1"]
[ECO "A57"]
[WhiteElo "2227"]
[BlackElo "2377"]
[Annotator "ChessBase"]
[PlyCount "134"]
[EventDate "2020.09.05"]
[EventType "team-tourn"]
[EventCountry "POL"]
[SourceTitle "playchess.com"]
[Source "ChessBase"]
[SourceQuality "1"]
[WhiteTeam "Gostmat Gostynin"]
[BlackTeam "UKS RODLO Opole"]
[WhiteTeamCountry "POL"]
[BlackTeamCountry "POL"]
[TimeControl "40/5400+30:1800+30"]

1. d4 {[%emt 0:00:00]} Nf6 {[%emt 0:01:14]} 2. c4 {[%emt 0:00:00]} c5 {[%emt 0:00:15]} 3. d5 {[%emt 0:00:26]} b5 {[%emt 0:00:06]} 4. Nd2 {[%emt 0:00:42]} d6 {[%emt 0:09:28]} 5. e4 {[%emt 0:01:00]} g6 {[%emt 0:00:04]} 6. cxb5 {[%emt 0:00:34]} a6 {[%emt 0:00:27]} 7. a4 {[%emt 0:00:22]} Bg7 {[%emt 0:05:22]} 8. Ngf3 {[%emt 0:02:02]} O-O {[%emt 0:02:18]} 9. Ra3 {[%emt 0:02:47]} Nbd7 {[%emt 0:08:58]} 10. Be2 {[%emt 0:06:25]} Ne8 {[%emt 0:00:47]} 11. O-O {[%emt 0:22:30]} Nc7 {[%emt 0:07:50]} 12. bxa6 {[%emt 0:01:44]} Bxa6 {[%emt 0:01:45]} 13. Bxa6 {[%emt 0:00:46]} Nxa6 {[%emt 0:00:18]} 14. Nc4 {[%emt 0:01:03]} Nb6 {[%emt 0:01:24]} 15. Ne3 {[%emt 0:01:38]} Nb4 {[%emt 0:06:45]} 16. a5 {[%emt 0:12:01]} Nd7 {[%emt 0:01:29]} 17. Nc4 {[%emt 0:00:20]} Qb8 {[%emt 0:14:22]} 18. Bg5 {[%emt 0:13:54]} Qb5 {[%emt 0:00:27]} 19. b3 {[%emt 0:00:09]} Nf6 {[%emt 0:01:36]} 20. Re1 {[%emt 0:00:38]} h6 {[%emt 0:01:29]} 21. Bc1 {[%emt 0:00:18]} Ra6 {[%emt 0:03:19]} 22. Bb2 {[%emt 0:01:02]} Re8 {[%emt 0:01:13]} 23. Qd2 {[%emt 0:00:52]} e6 {[%emt 0:03:02]} 24. Bxf6 {[%emt 0:07:42]} Bxf6 {[%emt 0:00:02]} 25. e5 {[%emt 0:00:07]} dxe5 {[%emt 0:05:45]} 26. d6 {[%emt 0:00:31]} Rd8 {[%emt 0:14:41]} 27. Nfxe5 {[%emt 0:03:26]} Bg5 {[%emt 0:00:50]} 28. Qe2 {[%emt 0:04:18]} Qb7 {[%emt 0:01:18]} 29. g3 {[%emt 0:03:16]} Bf6 {[%emt 0:00:22]} 30. f4 {[%emt 0:05:04]} Nc6 {[%emt 0:01:25]} 31. Qe4 {[%emt 0:02:15]} Qb5 {[%emt 0:02:17]} 32. Nxc6 {[%emt 0:02:47]} Rxc6 {[%emt 0:00:05]} 33. Rd1 {[%emt 0:00:59]} Ra6 {[%emt 0:00:53]} 34. Rd3 {[%emt 0:00:29]} h5 {[%emt 0:01:46]} 35. Ra2 {[%emt 0:00:52]} Qb4 {[%emt 0:02:32]} 36. Ra4 {[%emt 0:00:38]} Qb5 {[%emt 0:00:10]} 37. Ra2 {[%emt 0:00:27]} Qb4 {[%emt 0:00:15]} 38. Ra4 {[%emt 0:00:13]} Qb5 {[%emt 0:00:07]} 39. Kg2 {[%emt 0:00:07]} Rb8 {[%emt 0:02:28]} 40. Kf3 {[%emt 0:00:00]} Kf8 {[%emt 0:00:00]} 41. Ra2 {[%emt 0:04:40]} Bd4 {[%emt 0:06:35]} 42. Rad2 {[%emt 0:01:30]} f5 {[%emt 0:10:10]} 43. Qe1 {[%emt 0:01:34]} Qc6+ {[%emt 0:00:01]} 44. Ke2 {[%emt 0:00:09]} Qd5 {[%emt 0:02:01]} 45. Kd1 {[%emt 0:02:48]} Ra7 {[%emt 0:01:52]} 46. Qf1 {[%emt 0:02:11]} Ke8 {[%emt 0:08:14]} 47. Qf3 {[%emt 0:01:30]} Kd8 {[%emt 0:00:24]} 48. Ke2 {[%emt 0:01:31]} Rb4 {[%emt 0:01:05]} 49. Kd1 {[%emt 0:10:02]} Ra6 {[%emt 0:01:10]} 50. Qe2 {[%emt 0:00:45]} Qh1+ {[%emt 0:01:18]} 51. Qe1 {[%emt 0:01:43]} Qe4 {[%emt 0:00:01]} 52. Qf1 {[%emt 0:01:49]} Rxc4 {[%emt 0:00:28]} 53. bxc4 {[%emt 0:00:34]} Rxa5 {[%emt 0:00:01]} 54. Rc2 {[%emt 0:01:40]} Be3 {[%emt 0:01:37]} 55. Ke2 {[%emt 0:02:36]} Ra1 {[%emt 0:00:45]} 56. Qxa1 {[%emt 0:01:07]} Bd4+ {[%emt 0:00:13]} 57. Kd2 {[%emt 0:00:09]} Bxa1 {[%emt 0:00:26]} 58. Re3 {[%emt 0:00:08]} Qh1 {[%emt 0:02:09]} 59. Rc1 {[%emt 0:00:24]} Qg2+ {[%emt 0:01:01]} 60. Re2 {[%emt 0:00:06]} Qa8 {[%emt 0:00:12]} 61. Rxe6 {[%emt 0:00:20]} Bd4 {[%emt 0:00:31]} 62. Rc2 {[%emt 0:00:33]} Kd7 {[%emt 0:00:54]} 63. Re2 {[%emt 0:01:04]} Qa5+ {[%emt 0:00:13]} 64. Kd3 {[%emt 0:00:18]} Qa3+ {[%emt 0:00:04]} 65. Kd2 {[%emt 0:00:07]} Kxd6 {[%emt 0:00:02]} 66. Ke1 {[%emt 0:00:24]} Qf3 {[%emt 0:00:20]} 67. Kd2 {[%emt 0:00:11]} h4 {[%emt 0:00:08]} 0-1

[Event "POL-chT 1st League 2020"]
[Site "Ustron"]
[Date "2020.09.07"]
[Round "3.16"]
[White "Godzwon, Iwo"]
[Black "Reza, Wojciech"]
[Result "1/2-1/2"]
[ECO "B67"]
[WhiteElo "2317"]
[BlackElo "2273"]
[Annotator "ChessBase"]
[PlyCount "98"]
[EventDate "2020.09.05"]
[EventType "team-tourn"]
[EventCountry "POL"]
[SourceTitle "playchess.com"]
[Source "ChessBase"]
[SourceQuality "1"]
[WhiteTeam "UKS RODLO Opole"]
[BlackTeam "Gostmat Gostynin"]
[WhiteTeamCountry "POL"]
[BlackTeamCountry "POL"]
[TimeControl "40/5400+30:1800+30"]

1. e4 {[%emt 0:00:00]} c5 {[%emt 0:00:23]} 2. Nf3 {[%emt 0:00:00]} Nc6 {[%emt 0:00:25]} 3. d4 {[%emt 0:00:00]} cxd4 {[%emt 0:00:08]} 4. Nxd4 {[%emt 0:00:00]} Nf6 {[%emt 0:01:00]} 5. Nc3 {[%emt 0:00:00]} d6 {[%emt 0:00:45]} 6. Bg5 {[%emt 0:00:08]} e6 {[%emt 0:02:10]} 7. Qd2 {[%emt 0:01:47]} a6 {[%emt 0:00:44]} 8. O-O-O {[%emt 0:02:45]} Bd7 {[%emt 0:00:31]} 9. f3 {[%emt 0:02:46]} h6 {[%emt 0:27:06]} 10. Be3 {[%emt 0:00:04]} Be7 {[%emt 0:03:06]} 11. g4 {[%emt 0:00:11]} Rc8 {[%emt 0:18:02]} 12. h4 {[%emt 0:00:51]} Nxd4 {[%emt 0:05:15]} 13. Bxd4 {[%emt 0:11:27]} Qa5 {[%emt 0:10:41]} 14. Kb1 {[%emt 0:05:36]} e5 {[%emt 0:04:23]} 15. Be3 {[%emt 0:00:20]} Be6 {[%emt 0:00:24]} 16. Nd5 {[%emt 0:10:32]} Qxd2 {[%emt 0:00:08]} 17. Nxf6+ {[%emt 0:00:00]} Bxf6 {[%emt 0:01:07]} 18. Rxd2 {[%emt 0:00:00]} Rc6 {[%emt 0:01:42]} 19. Be2 {[%emt 0:09:07]} Bd8 {[%emt 0:02:23]} 20. f4 {[%emt 0:03:40]} Ba5 {[%emt 0:18:08]} 21. c3 {[%emt 0:02:32]} Bc4 {[%emt 0:00:40]} 22. Bf3 {[%emt 0:00:39]} Bb6 {[%emt 0:00:51]} 23. Bxb6 {[%emt 0:06:27]} Rxb6 {[%emt 0:00:06]} 24. f5 {[%emt 0:15:45]} f6 {[%emt 0:00:48]} 25. b3 {[%emt 0:12:47]} Bf7 {[%emt 0:00:16]} 26. c4 {[%emt 0:06:39]} Ke7 {[%emt 0:00:27]} 27. Ka1 {[%emt 0:00:34]} Rc6 {[%emt 0:00:15]} 28. Rhd1 {[%emt 0:00:25]} b6 {[%emt 0:01:07]} 29. Be2 {[%emt 0:01:09]} g6 {[%emt 0:00:50]} 30. Bd3 {[%emt 0:01:12]} Rg8 {[%emt 0:00:17]} 31. Rg1 {[%emt 0:00:32]} a5 {[%emt 0:00:44]} 32. Rdg2 {[%emt 0:00:16]} g5 {[%emt 0:00:31]} 33. hxg5 {[%emt 0:01:46]} Rxg5 {[%emt 0:00:22]} 34. Be2 {[%emt 0:00:58]} Rc8 {[%emt 0:00:14]} 35. Kb2 {[%emt 0:01:06]} Rcg8 {[%emt 0:00:05]} 36. Kc3 {[%emt 0:00:30]} h5 {[%emt 0:00:16]} 37. Bf3 {[%emt 0:00:03]} hxg4 {[%emt 0:00:57]} 38. Rxg4 {[%emt 0:00:04]} Rxg4 {[%emt 0:00:05]} 39. Rxg4 {[%emt 0:00:00]} Rxg4 {[%emt 0:00:00]} 40. Bxg4 {[%emt 0:00:00]} Be8 {[%emt 0:00:00]} 41. Kd3 {[%emt 0:10:53]} Kf8 {[%emt 0:03:14]} 42. Bd1 {[%emt 0:01:21]} Kg7 {[%emt 0:02:11]} 43. Ke3 {[%emt 0:00:02]} Kh6 {[%emt 0:00:23]} 44. Kf2 {[%emt 0:00:02]} Kg5 {[%emt 0:01:24]} 45. Kg3 {[%emt 0:00:03]} Bc6 {[%emt 0:05:16]} 46. Bc2 {[%emt 0:02:40]} Bd7 {[%emt 0:04:23]} 47. a4 {[%emt 0:00:18]} Bc6 {[%emt 0:05:03]} 48. Bd3 {[%emt 0:00:05]} Be8 {[%emt 0:00:11]} 49. Be2 {[%emt 0:00:03]} Bc6 {[%emt 0:01:33]} 1/2-1/2

[Event "POL-chT 1st League 2020"]
[Site "Ustron"]
[Date "2020.09.07"]
[Round "3.17"]
[White "Renkowski, Piotr"]
[Black "Kowalczyk, Pawel"]
[Result "0-1"]
[ECO "B01"]
[WhiteElo "2149"]
[BlackElo "2339"]
[Annotator "ChessBase"]
[PlyCount "52"]
[EventDate "2020.09.05"]
[EventType "team-tourn"]
[EventCountry "POL"]
[SourceTitle "playchess.com"]
[Source "ChessBase"]
[SourceQuality "1"]
[WhiteTeam "Gostmat Gostynin"]
[BlackTeam "UKS RODLO Opole"]
[WhiteTeamCountry "POL"]
[BlackTeamCountry "POL"]
[TimeControl "40/5400+30:1800+30"]

1. e4 {[%emt 0:00:00]} d5 {[%emt 0:00:00]} 2. exd5 {[%emt 0:00:17]} Nf6 {[%emt 0:00:00]} 3. d4 {[%emt 0:01:21]} Nxd5 {[%emt 0:00:00]} 4. Nf3 {[%emt 0:01:04]} Bf5 {[%emt 0:00:38]} 5. Bd3 {[%emt 0:08:58]} Bxd3 {[%emt 0:00:50]} 6. Qxd3 {[%emt 0:00:02]} e6 {[%emt 0:00:16]} 7. O-O {[%emt 0:05:59]} c6 {[%emt 0:06:47]} 8. c3 {[%emt 0:01:19]} Bd6 {[%emt 0:01:04]} 9. Nbd2 {[%emt 0:01:21]} O-O {[%emt 0:00:14]} 10. Ne4 {[%emt 0:00:55]} h6 {[%emt 0:00:05]} 11. Ne5 {[%emt 0:07:06]} Bc7 {[%emt 0:14:50]} 12. Qh3 {[%emt 0:08:51]} Nd7 {[%emt 0:06:38]} 13. f4 {[%emt 0:27:24]} N7f6 {[%emt 0:04:36]} 14. Nxf6+ {[%emt 0:01:32]} Nxf6 {[%emt 0:00:17]} 15. Be3 {[%emt 0:01:17]} Qd5 {[%emt 0:07:50]} 16. f5 {[%emt 0:05:20]} Rae8 {[%emt 0:01:43]} 17. Bxh6 {[%emt 0:04:08]} gxh6 {[%emt 0:08:45]} 18. Qxh6 {[%emt 0:00:23]} Bxe5 {[%emt 0:00:07]} 19. dxe5 {[%emt 0:01:41]} Qxe5 {[%emt 0:05:07]} 20. Rae1 {[%emt 0:00:43]} Ng4 {[%emt 0:00:38]} 21. Qh4 {[%emt 0:10:19]} Qc5+ {[%emt 0:00:09]} 22. Kh1 {[%emt 0:00:01]} exf5 {[%emt 0:00:12]} 23. h3 {[%emt 0:02:11]} Rxe1 {[%emt 0:01:13]} 24. Rxe1 {[%emt 0:02:02]} Nf2+ {[%emt 0:00:19]} 25. Kh2 {[%emt 0:00:01]} Qd6+ {[%emt 0:00:07]} 26. Kg1 {[%emt 0:00:02]} Ne4 {[%emt 0:00:08]} 0-1

[Event "POL-chT 1st League 2020"]
[Site "Ustron"]
[Date "2020.09.07"]
[Round "3.18"]
[White "Starosta, Martyna"]
[Black "Dwilewicz, Katarzyna"]
[Result "1/2-1/2"]
[ECO "C67"]
[WhiteElo "2038"]
[BlackElo "2134"]
[Annotator "ChessBase"]
[PlyCount "122"]
[EventDate "2020.09.05"]
[EventType "team-tourn"]
[EventCountry "POL"]
[SourceTitle "playchess.com"]
[Source "ChessBase"]
[SourceQuality "1"]
[WhiteTeam "UKS RODLO Opole"]
[BlackTeam "Gostmat Gostynin"]
[WhiteTeamCountry "POL"]
[BlackTeamCountry "POL"]
[TimeControl "40/5400+30:1800+30"]

1. e4 {[%emt 0:00:00]} e5 {[%emt 0:00:00]} 2. Nf3 {[%emt 0:00:00]} Nc6 {[%emt 0:00:00]} 3. Bb5 {[%emt 0:00:00]} Nf6 {[%emt 0:00:00]} 4. O-O {[%emt 0:03:59]} Nxe4 {[%emt 0:00:14]} 5. d4 {[%emt 0:00:19]} Nd6 {[%emt 0:00:46]} 6. Bxc6 {[%emt 0:00:07]} dxc6 {[%emt 0:00:06]} 7. dxe5 {[%emt 0:00:05]} Nf5 {[%emt 0:00:06]} 8. Qxd8+ {[%emt 0:00:19]} Kxd8 {[%emt 0:00:07]} 9. h3 {[%emt 0:00:20]} h5 {[%emt 0:00:48]} 10. b3 {[%emt 0:00:18]} Ke8 {[%emt 0:00:43]} 11. Bb2 {[%emt 0:00:24]} Be7 {[%emt 0:03:52]} 12. Nbd2 {[%emt 0:10:05]} Rh6 {[%emt 0:06:08]} 13. Ne4 {[%emt 0:03:15]} b6 {[%emt 0:11:47]} 14. c4 {[%emt 0:05:45]} Rg6 {[%emt 0:13:17]} 15. Kh2 {[%emt 0:03:28]} Bb7 {[%emt 0:03:05]} 16. c5 {[%emt 0:17:48]} Rd8 {[%emt 0:08:49]} 17. Rac1 {[%emt 0:06:02]} Rd5 {[%emt 0:07:13]} 18. b4 {[%emt 0:01:47]} Bc8 {[%emt 0:04:10]} 19. Rfe1 {[%emt 0:02:46]} Kf8 {[%emt 0:01:36]} 20. Rc2 {[%emt 0:06:15]} Rd3 {[%emt 0:04:46]} 21. Rc3 {[%emt 0:03:16]} Ba6 {[%emt 0:05:43]} 22. Rec1 {[%emt 0:04:26]} Rxc3 {[%emt 0:12:16]} 23. Rxc3 {[%emt 0:02:44]} Bb7 {[%emt 0:02:53]} 24. Ra3 {[%emt 0:01:14]} a6 {[%emt 0:00:21]} 25. Rd3 {[%emt 0:00:56]} Ke8 {[%emt 0:00:38]} 26. Nfd2 {[%emt 0:01:34]} b5 {[%emt 0:05:11]} 27. Nf3 {[%emt 0:05:03]} Bc8 {[%emt 0:00:55]} 28. Ned2 {[%emt 0:06:44]} a5 {[%emt 0:04:08]} 29. bxa5 {[%emt 0:03:18]} Bxc5 {[%emt 0:00:06]} 30. Bd4 {[%emt 0:03:35]} Nxd4 {[%emt 0:00:51]} 31. Nxd4 {[%emt 0:00:12]} Bxd4 {[%emt 0:00:47]} 32. Rxd4 {[%emt 0:00:04]} c5 {[%emt 0:00:25]} 33. Rh4 {[%emt 0:01:45]} Bb7 {[%emt 0:01:19]} 34. f3 {[%emt 0:01:18]} Rg5 {[%emt 0:01:07]} 35. a4 {[%emt 0:02:36]} b4 {[%emt 0:02:31]} 36. Rc4 {[%emt 0:04:48]} Rxe5 {[%emt 0:00:02]} 37. Nb3 {[%emt 0:00:18]} Ba6 {[%emt 0:00:59]} 38. Rxc5 {[%emt 0:00:44]} Rxc5 {[%emt 0:00:12]} 39. Nxc5 {[%emt 0:00:05]} Bc4 {[%emt 0:00:25]} 40. a6 {[%emt 0:00:00]} Bd5 {[%emt 0:00:00]} 41. a7 {[%emt 0:04:15]} Ke7 {[%emt 0:16:29]} 42. Kg3 {[%emt 0:18:52]} Kd6 {[%emt 0:00:47]} 43. Nb3 {[%emt 0:00:45]} c5 {[%emt 0:00:52]} 44. Nd2 {[%emt 0:04:25]} Kc7 {[%emt 0:06:02]} 45. Nc4 {[%emt 0:01:10]} Ba8 {[%emt 0:02:00]} 46. Kf4 {[%emt 0:01:35]} f6 {[%emt 0:03:30]} 47. Kf5 {[%emt 0:00:13]} Kb7 {[%emt 0:01:16]} 48. Ke6 {[%emt 0:00:07]} Kxa7 {[%emt 0:00:05]} 49. Kd6 {[%emt 0:00:07]} b3 {[%emt 0:01:44]} 50. Kxc5 {[%emt 0:00:09]} g5 {[%emt 0:00:40]} 51. Kb4 {[%emt 0:00:37]} h4 {[%emt 0:01:49]} 52. Kxb3 {[%emt 0:00:57]} g4 {[%emt 0:00:47]} 53. Ne3 {[%emt 0:01:21]} gxf3 {[%emt 0:00:51]} 54. gxf3 {[%emt 0:00:06]} Bxf3 {[%emt 0:00:04]} 55. Nf5 {[%emt 0:00:06]} Bg2 {[%emt 0:00:12]} 56. Nxh4 {[%emt 0:00:04]} Bxh3 {[%emt 0:00:06]} 57. Kc4 {[%emt 0:00:09]} Kb6 {[%emt 0:00:51]} 58. Kd5 {[%emt 0:00:17]} Ka5 {[%emt 0:00:33]} 59. Kd6 {[%emt 0:00:11]} Kxa4 {[%emt 0:00:05]} 60. Ke7 {[%emt 0:00:05]} f5 {[%emt 0:00:05]} 61. Nxf5 {[%emt 0:00:04]} Bxf5 {[%emt 0:00:04]} 1/2-1/2